Cogmind - Beta 16.1 @@@ ROGUE MODE // 2026.02.24 @ 14:01:07 Player: sckl Result: Self-destructed Performance ------------- Evolutions (2) 1000 Regions Visited (5) 1000 Robots Destroyed (32) 160 Value Destroyed (603) 603 Prototype IDs (2) 40 Alien Tech Used (0) 0 Bonus (300) 300 TOTAL SCORE: 3103 Bonus ------- Aligned with FarCom 300 Cogmind --------- Core Integrity 550/550 Matter 263/300 Energy 160/160 System Corruption 0% Temperature Cool (0) Movement Walking (123) Location -8/Materials Parts ------- > --- POWER (1) -------- Light Nuclear Core > --- PROPULSION (4) --- Aluminum Leg Aluminum Leg Titanium Leg > --- UTILITY (4) ------ Small Storage Unit Improved Light Armor Plating Supersonic Drone Bay (1/1) > --- WEAPON (2) ------- Assault Rifle Light Cannon > --- INVENTORY (8) ---- Light Nuclear Core Aluminum Leg Wheel High-capacity Storage Unit Structural Scanner Visual Processing Unit Seismic Detector Light Armor Plating Peak State ------------ > --- POWER ------------ Light Nuclear Core > --- PROPULSION ------- Aluminum Leg Aluminum Leg Titanium Leg > --- UTILITY ---------- Small Storage Unit Improved Light Armor Plating Supersonic Drone Bay > --- WEAPON ----------- Assault Rifle Light Cannon > --- INVENTORY -------- Light Nuclear Core Aluminum Leg Wheel High-capacity Storage Unit Structural Scanner Visual Processing Unit Seismic Detector Light Armor Plating [Rating: 23] Favorites ----------- Power Light Nuclear Core Engine Light Ion Engine Power Core Light Nuclear Core Propulsion Aluminum Leg Treads Light Treads Leg Aluminum Leg Utility Small Storage Unit Device Seismic Detector Storage Small Storage Unit Protection Improved Light Armor Plating Weapon Assault Rifle Energy Gun Medium Laser Ballistic Gun Assault Rifle Ballistic Cannon Light Cannon Build | -11 -10 -10 -10 -9 -8 ------- Run | Yrd Mat Min Exi Min Mat Slots Evolved 4 | . . . . . 4 Power . | . . . . . . Propulsion 2 | . . . . . 2 Utility 2 | . . . . . 2 Weapon . | . . . . . . Parts Attached 20 | 7 8 2 1 . 2 Power 3 | 1 2 . . . . Engine 2 | 1 1 . . . . Core 1 | . 1 . . . . Reactor . | . . . . . . Propulsion 6 | 2 3 . . . 1 Treads 2 | 2 . . . . . Leg 4 | . 3 . . . 1 Wheel . | . . . . . . Hover . | . . . . . . Flight . | . . . . . . Utility 8 | 2 2 2 1 . 1 Device 5 | 1 1 2 1 . . Storage 1 | 1 . . . . . Processor . | . . . . . . Hackware . | . . . . . . Protection 2 | . 1 . . . 1 Artifact . | . . . . . . Weapon 3 | 2 1 . . . . Energy Gun 1 | 1 . . . . . Energy Cannon . | . . . . . . Ballistic Gun 1 | 1 . . . . . Ballistic Cannon 1 | . 1 . . . . Launcher . | . . . . . . Special Weapon . | . . . . . . Impact Weapon . | . . . . . . Slashing Weapon . | . . . . . . Piercing Weapon . | . . . . . . Special Melee Weapon . | . . . . . . Unidentified Prototypes 2 | . . 1 1 . . Parts Lost 3 | . 3 . . . . Power 1 | . 1 . . . . Propulsion 1 | . 1 . . . . Utility 1 | . 1 . . . . Weapon . | . . . . . . Highest Loss Streak 2 | . 2 . . . . To Critical Strikes . | . . . . . . Average Backups 7 | 3 7 8 8 8 8 Power 2 | . 2 2 1 1 1 Propulsion 2 | 2 2 2 2 2 2 Utility 2 | . 1 3 4 5 5 Weapon . | . . . . . . Tool/Special . | . . . . . . Unused Backups 7 | . . 2 1 . 4 Power 4 | . . 2 1 . 1 Propulsion 1 | . . . . . 1 Utility 2 | . . . . . 2 Weapon . | . . . . . . Tool/Special . | . . . . . . Average Slot Usage (%) 95 | . 94 99 100 100 77 Engine 2 | . 6 . . . . Core 10 | . 6 14 14 14 9 Treads 7 | . 16 . . . . Leg 20 | . 10 28 28 28 25 Device 11 | . 9 13 14 14 9 Storage 13 | . 14 14 14 14 9 Protection 1 | . . . . . 7 Energy Gun 5 | . 12 . . . . Ballistic Gun 13 | . 14 14 14 14 9 Ballistic Cannon 8 | . 1 14 14 14 9 Peak Build Rating 23 | 7 9 18 17 17 23 Average Rating 10 | 5 7 10 13 17 22 On Entrance 10 | . 7 9 10 17 17 Avg Prop Armor Cover (%) . | . . . . . . Naked Turns . | . . . . . . Heaviest Build 19 | 13 17 16 16 16 19 Greatest Support 40 | 40 40 20 20 20 37 Greatest Overweight (x) . | . . . . . . Average Overweight (x) . | . . . . . . Largest Inventory Capacity 8 | 8 8 8 8 8 8 Average Capacity 7 | 7 8 8 8 8 8 Most Carried 8 | 5 8 8 8 8 8 Average Carried 7 | 3 7 7 7 8 8 Final Capacity 8 | 8 8 8 8 8 8 Final Carried 8 | 5 8 8 8 8 8 Class Distribution -------------------- 100% | Mutant Dominant Class ---------------- Mutant | -10/Materials Mutant | -10/Mines Mutant | -10/Exiles Mutant | -9/Mines Mutant | -8/Materials Resources | -11 -10 -10 -10 -9 -8 ----------- Run | Yrd Mat Min Exi Min Mat Matter Collected 769 | 235 247 170 . . 117 Remotely . | . . . . . . Salvage Created 860 | 185 461 109 . . 105 Parts 63 | 17 32 9 . . 5 Haulers Intercepted . | . . . . . . Recyclers Shooed 5 | 1 4 . . . . Parts Field Recycled . | . . . . . . Retrieved Matter . | . . . . . . Parts Self-Destructed . | . . . . . . Prevented . | . . . . . . Parts Restored . | . . . . . . Kills | -11 -10 -10 -10 -9 -8 ------- Run | Yrd Mat Min Exi Min Mat Combat Hostiles Destroyed 22 | . 14 5 . . 3 Guns 19 | . 14 4 . . 1 Cannons 3 | . . 1 . . 2 Classes Destroyed 6 | 3 3 . . . . Worker 4 | 1 3 . . . . Tunneler 4 | 4 . . . . . Recycler 1 | 1 . . . . . Watcher 1 | . 1 . . . . Swarmer 11 | . 8 3 . . . Grunt 11 | . 6 2 . . 3 Best Kill Streak 7 | 3 7 3 . . 2 Combat Bots Only 5 | . 5 3 . . 2 Max Kills in Single Turn 2 | 1 2 1 . . 1 Gunslinging 1 | . 1 . . . . Exploded . | . . . . . . Melee . | . . . . . . Uniques/NPCs Destroyed . | . . . . . . Combat | -11 -10 -10 -10 -9 -8 -------- Run | Yrd Mat Min Exi Min Mat Hostile Shots Fired 112 | . 72 10 . 5 25 Missed 37 | . 16 4 . 2 15 Hits 75 | . 56 6 . 3 10 Projectile 75 | . 56 6 . 3 10 Damage Taken 847 | . 588 73 . 26 160 Core 144 | . 126 18 . . . Absorbed by Shields . | . . . . . . Core Remaining (%) 71 | 100 . . . 42 . Volleys Fired 96 | 11 60 11 . . 14 Largest 2 | 2 2 2 . . 2 Hottest 70 | 70 70 50 . . 50 Shots Fired 187 | 22 115 22 . . 28 Gun 157 | 22 110 11 . . 14 Cannon 30 | . 5 11 . . 14 Launcher . | . . . . . . Special . | . . . . . . Kinetic 122 | 11 61 22 . . 28 Thermal 65 | 11 54 . . . . Explosive . | . . . . . . Electromagnetic . | . . . . . . Robot Hit Streak 8 | 5 8 3 . . 7 Robot Miss Streak 4 | 3 4 2 . . 4 Penetration Max . | . . . . . . Secondary Targets 3 | . 3 . . . . Max Gunslinging Chain 1 | . 1 . . . . Shots Hit Robots 108 | 12 67 12 . . 17 Core Hits 50 | 7 27 8 . . 8 Critical Kills . | . . . . . . Critical Parts Destroyed . | . . . . . . Critical Strikes 7 | . 7 . . . . Burn 7 | . 7 . . . . Melee Attacks . | . . . . . . Impact . | . . . . . . Slashing . | . . . . . . Piercing . | . . . . . . Sneak Attacks . | . . . . . . Combat Hostiles . | . . . . . . Follow-up Attacks . | . . . . . . Damage Inflicted 1511 | 154 894 206 . . 257 Guns 1274 | 154 891 114 . . 115 Cannons 209 | . . 67 . . 142 Explosions . | . . . . . . Melee . | . . . . . . Ramming 28 | . 3 25 . . . Kinetic 985 | 105 442 181 . . 257 Thermal 498 | 49 449 . . . . Explosive . | . . . . . . Electromagnetic . | . . . . . . Impact . | . . . . . . Slashing . | . . . . . . Piercing . | . . . . . . Highest Corruption 1 | . 1 1 1 1 . Average Corruption 1 | . 1 1 1 1 . Corruption Purged . | . . . . . . Corruption Blocked . | . . . . . . Effects 12 | . 2 9 1 . . Message Errors 2 | . 1 1 . . . Matter Fused 1 | . . 1 . . . Energy Discharges 2 | . . 2 . . . Data Loss (minor) 2 | . . 1 1 . . Data Loss (major) 4 | . . 4 . . . Misfires 1 | . 1 . . . . Overload Shots . | . . . . . . Overflow Damage . | . . . . . . Projectiles . | . . . . . . Explosions . | . . . . . . Melee . | . . . . . . Knockbacks 5 | . . 2 . . 3 Impact . | . . . . . . Kinetic 5 | . . 2 . . 3 Secondary . | . . . . . . Self-Inflicted Damage . | . . . . . . Shots . | . . . . . . Rammed 2 | . 2 . . . . Targets Rammed 7 | . 2 5 . . . Kicked 5 | . . 5 . . . Crushed . | . . . . . . Highest Temperature 273 | 36 273 13 . . 3 Average Temperature 57 | 14 70 9 . . 3 Received Heat Transfer 297 | . 180 27 . . 90 Siege Activations . | . . . . . . Martial Activations . | . . . . . . Shielding Activations . | . . . . . . Robots Disrupted . | . . . . . . Combat Hostiles . | . . . . . . Robots Corrupted . | . . . . . . Combat Hostiles . | . . . . . . Parts Fried . | . . . . . . Impact Corruptions . | . . . . . . Robots Melted . | . . . . . . Combat Hostiles . | . . . . . . Parts Melted 7 | . 7 . . . . Heat Transferred 1998 | 148 1850 . . . . Parts Sabotaged . | . . . . . . Parts Stolen . | . . . . . . Parts Stripped . | . . . . . . Power Chain Reactions . | . . . . . . Alert | -11 -10 -10 -10 -9 -8 ------- Run | Yrd Mat Min Exi Min Mat Maximum Alert Level 1 | . 1 . . . . Low Security (%) 99 | 100 99 100 . 100 100 Level 1 . | . . . . . . Level 2 . | . . . . . . Level 3 . | . . . . . . Level 4 . | . . . . . . Level 5 . | . . . . . . High Security . | . . . . . . Max Security . | . . . . . . Peak Influence 202 | 10 202 100 . . 51 Initial 39 | . . 39 . . . Average 44 | 1 82 22 . . 15 Influence Increases 614 | 30 388 120 . . 76 Destroy 0b10 Robot/C 440 | . 280 100 . . 60 Destroy 0b10 Robot/NC 50 | 30 20 . . . . Destroy Leader 92 | . 62 20 . . 10 Successful Hack 13 | . 8 . . . 5 Destroy Structure 4 | . 3 . . . 1 Lose Combat Pursuer 15 | . 15 . . . . Influence Decreases 588 | 30 288 220 . . 50 Entered New Map 61 | . . 61 . . . Time Decay 507 | 30 268 159 . . 50 Lost Part 20 | . 20 . . . . Squads Dispatched 3 | . 2 . . . 1 Investigation 1 | . 1 . . . . Extermination . | . . . . . . Reinforcement 2 | . 1 . . . 1 Assault . | . . . . . . Garrison . | . . . . . . Intercept . | . . . . . . Searches Triggered . | . . . . . . Construction Impeded . | . . . . . . Haulers Reinforced . | . . . . . . Active Scanning Responses . | . . . . . . Cargo Convoy Interrupts . | . . . . . . Stealth | -11 -10 -10 -10 -9 -8 --------- Run | Yrd Mat Min Exi Min Mat Distress Signals 2 | . 1 . . . 1 Communications Jammed . | . . . . . . Distress Signals . | . . . . . . Times Spotted 41 | . 21 5 . 4 11 Peak Tracking Total 6 | . 5 3 . 6 6 Tactical Retreats 1 | . 1 . . . . Traps | -11 -10 -10 -10 -9 -8 ------- Run | Yrd Mat Min Exi Min Mat Traps Triggered 2 | . 2 . . . . Indirectly . | . . . . . . Trap Hack Attempts . | . . . . . . Triggered . | . . . . . . Disarmed . | . . . . . . Reprogrammed . | . . . . . . Reused . | . . . . . . Traps Extracted . | . . . . . . Installed . | . . . . . . Triggered . | . . . . . . Machines | -11 -10 -10 -10 -9 -8 ---------- Run | Yrd Mat Min Exi Min Mat Machines Disabled . | . . . . . . Max in Single Turn . | . . . . . . Machines Repaired . | . . . . . . Machines Dismantled . | . . . . . . Machines Sabotaged . | . . . . . . Overloaded Fab Kills . | . . . . . . Hacking | -11 -10 -10 -10 -9 -8 --------- Run | Yrd Mat Min Exi Min Mat Machines Accessed 6 | . 5 . . . 1 Terminals 5 | . 4 . . . 1 Fabricators . | . . . . . . Repair Stations . | . . . . . . Recycling Units 1 | . 1 . . . . Scanalyzers . | . . . . . . Garrison Access . | . . . . . . Total Hacks 18 | . 14 . . . 4 Successful 7 | . 6 . . . 1 Failed 11 | . 8 . . . 3 Catastrophic 3 | . 1 . . . 2 Database Lockouts . | . . . . . . Manual 17 | . 12 . 1 . 4 Terminals 16 | . 12 . . . 4 Fabricators . | . . . . . . Repair Stations . | . . . . . . Recycling Units 2 | . 2 . . . . Scanalyzers . | . . . . . . Garrison Access . | . . . . . . Terminal Hacks 1 | . 1 . . . . Hauler Manifests 1 | . 1 . . . . Fabricator Hacks . | . . . . . . Repair Station Hacks . | . . . . . . Recycling Unit Hacks 2 | . 2 . . . . Report Inventory 1 | . 1 . . . . Retrieve Components 1 | . 1 . . . . Scanalyzer . | . . . . . . Garrison Access Hacks . | . . . . . . Unauthorized Hacks 4 | . 3 . . . 1 Terminals 4 | . 3 . . . 1 Botnet 4 | . 3 . . . 1 Fabricators . | . . . . . . Repair Stations . | . . . . . . Recycling Units . | . . . . . . Scanalyzers . | . . . . . . Garrison Access . | . . . . . . Data Cores Recovered . | . . . . . . Used . | . . . . . . Hacking Detections 4 | . 3 . . . 1 Full Trace Events 3 | . 2 . . . 1 Feedback Events . | . . . . . . Feedback Blocked . | . . . . . . Robot Schematics Acquired . | . . . . . . Robots Built . | . . . . . . Authchips . | . . . . . . Time . | . . . . . . Total Robot Build Rating . | . . . . . . Part Schematics Acquired . | . . . . . . Parts Built . | . . . . . . Authchips . | . . . . . . Time . | . . . . . . Total Part Build Rating . | . . . . . . Part Studies Acquired . | . . . . . . Parts Repaired . | . . . . . . Time . | . . . . . . Parts Recycled . | . . . . . . Recycled Matter . | . . . . . . Retrieved Matter . | . . . . . . Retrieved Components 4 | . 4 . . . . Parts Scanalyzed . | . . . . . . Part Schematics Acquired . | . . . . . . Parts Damaged . | . . . . . . Bothacking | -11 -10 -10 -10 -9 -8 ------------ Run | Yrd Mat Min Exi Min Mat Used RIF Installer . | . . . . . . Robots Hacked . | . . . . . . Non-combat . | . . . . . . Combat . | . . . . . . Robot Hacks Applied . | . . . . . . Relay Couplers Released . | . . . . . . Fabnet Peak Effective % . | . . . . . . Robots Rewired . | . . . . . . Allies Hacked . | . . . . . . Hacks Repelled . | . . . . . . Allies | -11 -10 -10 -10 -9 -8 -------- Run | Yrd Mat Min Exi Min Mat Total Allies . | . . . . . . Largest Group . | . . . . . . Highest-Rated Group . | . . . . . . Highest-Rated Ally . | . . . . . . Total Orders . | . . . . . . Ally Attacks . | . . . . . . Total Damage . | . . . . . . Kills . | . . . . . . Allies Corrupted . | . . . . . . Allies Melted . | . . . . . . Intel | -11 -10 -10 -10 -9 -8 ------- Run | Yrd Mat Min Exi Min Mat Active Infowar (turns) 1344 | 16 597 596 135 . . Sensors 20 | . . 20 . . . Structural 568 | . 172 396 . . . Seismic 756 | 16 425 180 135 . . Robot Analysis Total . | . . . . . . Derelict Logs Recovered 2 | . . 1 . 1 . Drone Launches 1 | . . . . . 1 Drone Recoveries 1 | . . . . . 1 Exploration | -11 -10 -10 -10 -9 -8 ------------- Run | Yrd Mat Min Exi Min Mat Turns Passed 2353 | 186 923 599 260 164 221 Spaces Moved 1531 | 89 506 454 214 137 131 Core 3 | 3 . . . . . Treads 342 | 86 256 . . . . Legs 1186 | . 250 454 214 137 131 Wheels . | . . . . . . Hover . | . . . . . . Flight . | . . . . . . Fastest Speed 50 | 50 120 120 120 120 120 Average Speed 129 | 156 140 120 120 120 122 Slowest Speed 160 | 160 160 120 120 120 123 Overloaded Moves . | . . . . . . Propulsion Burnouts . | . . . . . . Robots Hopped . | . . . . . . Potential Cave-ins . | . . . . . . Cave-ins Triggered . | . . . . . . Exploration Rate (%) 44 | 5 70 78 60 34 17 Regions Visited 5 Branch Regions 3 Pre-discovered Areas . | . . . . . . Known Exits Taken . | . . . . . . Unknown Exits Taken 5 | 1 1 1 1 1 . Scrap Searched 1 | . . 1 . . . Spaces Dug . | . . . . . . Terrain Destroyed . | . . . . . . Melee . | . . . . . . Projectile . | . . . . . . AOE . | . . . . . . Terrain Rammed . | . . . . . . Walls Destroyed . | . . . . . . Machines Disabled . | . . . . . . Actions | -11 -10 -10 -10 -9 -8 --------- Run | Yrd Mat Min Exi Min Mat Total 1716 | 111 604 486 217 136 162 Wait 39 | . 19 5 . . 15 Move 1526 | 88 505 453 213 136 131 Hop . | . . . . . . Pick Up 13 | 5 4 3 1 . . Fast Attach 17 | 7 4 3 1 . 2 Attach 3 | . 3 . . . . Detach 1 | . 1 . . . . Swap 2 | . 2 . . . . Drop 12 | . 4 6 2 . . Fire 96 | 11 60 11 . . 14 Melee . | . . . . . . Ram . | . . . . . . Kick 5 | . . 5 . . . Crush 2 | . 2 . . . . Escape Stasis . | . . . . . . Rewire . | . . . . . . Trap . | . . . . . . Miscellaneous . | . . . . . . Route ------- -11/Scrapyard -10/Materials (discovered 3 exits: [*Mat x2] / [*Min]) -10/Mines (discovered 2 exits: [*Mat] / *Exi) -10/Exiles -9/Mines -8/Materials (discovered 1 exit: Fac) History --------- Turn | Location | Event 18 | -11/Scrapyard | Discovered new exit (range 15) 187 | -11/Scrapyard | Entered Materials 306 | -10/Materials | Build established: Mutant 336 | -10/Materials | Discovered new exit (range 16) 480 | -10/Materials | Discovered new exit (range 6) 806 | -10/Materials | Core integrity fell below 50% 828 | -10/Materials | Discovered new exit (range 6) 1110 | -10/Materials | Entered Mines 1111 | -10/Mines | Assembled infested the area 1116 | -10/Mines | Assisted by a Guerilla fighting off Assembled 1452 | -10/Mines | Learned 2 Materials zone layouts 1463 | -10/Mines | Discovered new exit (range 5) 1478 | -10/Mines | Found a damaged Exp. Sensor Array with a note attached 1480 | -10/Mines | Found Prototype Device 1480 | -10/Mines | Identified Exp. Sensor Array 1548 | -10/Mines | Deemed a non-threat by the Exiles lab entrance 1610 | -10/Mines | Discovered new exit (range 7) 1709 | -10/Mines | Entered Exiles 1738 | -10/Exiles | Met 8R-AWN 1759 | -10/Exiles | Met EX-HEX 1791 | -10/Exiles | Met EX-BIN 1813 | -10/Exiles | Aligned with FarCom system 1814 | -10/Exiles | Given EX-Vault access code 1844 | -10/Exiles | Opened EX-Vault 1849 | -10/Exiles | Found Prototype Device 1849 | -10/Exiles | Identified Supersonic Drone Bay 1876 | -10/Exiles | Warned to stay clear of 0b10 Research branches 1912 | -10/Exiles | Met EX-DEC 1954 | -10/Exiles | Discovered new exit (range 12) 1969 | -10/Exiles | Left Exiles lab with Supersonic Drone Bay 1969 | -10/Exiles | Entered Mines 2119 | -9/Mines | Discovered new exit (range 10) 2133 | -9/Mines | Entered Materials 2133 | -8/Materials | Evolved 4 slots: Propulsion x2, Utility x2 2134 | -8/Materials | Identified exit to Factory 2354 | -8/Materials | Self-destructed Last Messages --------------- 02173_ Acquired Imp. Light Armor Plating. 02213_ K-01 Serf collects debris. 02239_ Trailblazer retrieved by Supersonic Drone Bay (no repairs). 02260_ G-47 Trooper knocked back. 02266_ G-47 Trooper destroyed. 02280_ G-47 Trooper knocked back. 02301_ G-47 Trooper destroyed. 02305_ Acquired 34 matter. 02306_ Acquired 4 matter. 02307_ Acquired 30 matter. 02316_ Acquired 43 matter. 02317_ Acquired 4 matter. 02320_ Acquired 2 matter. 02322_ Connecting with Terminal... 02322_ Current location identified: Materials >>Trojan(Botnet) Trojan loaded successfully. Testing... Terminal linked with 0 systems. Awaiting botnet instructions. Map ----- +----------------------------------------------------+ | | | | | | | | | | | | | #############????????????????????????????????????? | | """"" """"" #??????????????????????########??????? | | """"" """"" #????????????????#######! % #??????? | | """"" """"" #????????????????# ! # """ #??????? | | #???###???######## # """ #??????? | | #???# ? T != """ #??????? | | #???# #??######### =# #??????? | | #####+#######???# #????##????# %# #??????? | | #??????# #????# ####### ##########??????? | | #??????# #???? Y #??# #???????????????? | | ######## #?? """ #??# #???????????????? | | ###### # + #?? """ #??# #???????????????? | | ?????# # # #???""" ####+######??????????? | | ?????# # # ### #! #??????????? | | ###### + # # """ # [ ! #??????????? | | # # + """ # #??????????? | | # # #k""" # """ #??????????? | | ######## # # """ """#??????????? | | ###### #??????# # "T" = # """ R"#??????????? | | # #??????# # """@ # """#??????????? | | "T" # #?????## ######+## #??????????? | | + ####### #???# ##+###+#####??????????? | | # #???# +?????????????? | | # T ##### #?????????????? | | # w g g #?????????????? | | ???#?# ####### !########+##g +?????????????? | | ?????# #?????#######????? # #?????????????? | | ?????# #???????????????? # #?????????????? | | ?????# #??????????????? # #?????????????? | | ????? #?????????????? ? # w #?????????????? | | ????? #????????????? ?? # #?????????????? | | ????? #???????????? ??? # #?????????????? | | ?????# #???????????# ???? # +?????????????? | | ?????# ????????????# ????? # #?????????????? | | ?????# ????????????##?????#### #?????????????? | | ?????? ?????????????????????? #?????????????? | | ??????? ?????????????????????? ?????????????? | | ??????????????????????????????? ?????????????? | | ??????????????????????????????? ?????????????? | | ???????????????????????????????#####?????????????? | | ?????????????????????????????????????????????????? | | ?????????????????????????????????????????????????? | | ?????????????????????????????????????????????????? | | ?????????????????????????????????????????????????? | +----------------------------------------------------+ Best States ------------- Heat Dissipation 31 Energy Generation 14 Energy Capacity 160 Matter Stores 300 Matter Capacity 300 Sight Range 16 Robot Scan Range 20 Terrain Scan Density 10 Armor Coverage 150 Evasion (%) 55 Recoil Reduction 2 Item Schematics ----------------- None Robot Schematics ------------------ None Fabricated ------------ Nothing Repaired ---------- Nothing Studied --------- None Alien Tech Used ----------------- None Achievements -------------- None Challenges ------------ None Game ------ Seed TrapRestorationLog Manual? 0 Play Time 00:23:30 Cumulative 17.7 hours Start 2026.02.24 @ 13:37:02 End 2026.02.24 @ 14:01:07 Sessions 1 Manual Loads 0 Difficulty Rogue Special Mode None Game No. 16 Rogue 16 Adventurer 0 Explorer 0 Win Type - Total 0 Types 0/0/0/0/0/0/0/0/0/0 Lore% 5 Gallery% 17 Achievement% 14 Wizard Run 0 Options --------- Layout 0 ASCII 0 Keyboard 1 Movement Arrows Keybinds 0 Fullscreen 2 Font 24/Smallcaps Map View 113x50 Zoom Use 0% Tactical HUD 1 Map Filters NONE Filters NONE Steam 1 RUN: dc911bf3-f835-4703-b86f-f29b21012640